lending/lending_fUSD_20241103
["ID","MTS","AMOUNT","RATE_DAILY","PERIOD"]
[341200827,1730628639999,-500.0,0.00029999,2]
[341200828,1730628640009,-500.0,0.00029999,2]
[341200829,1730628640018,-500.0,0.00029999,2]
[341200830,1730628640027,-500.0,0.00029999,2]
[341200831,1730628640036,-500.0,0.00029999,2]
[341200832,1730628640046,-549.39939036,0.00029999,2]
[341200833,1730628640055,-500.0,0.00029999,2]
[341200834,1730628640064,-400.0,0.00029999,2]
[341200835,1730628640073,-8620.47734002,0.0003,2]
[341200836,1730628640083,-409535.0,0.0003,2]
[341200837,1730628640092,-376.13,0.0003,10]
[341200838,1730628640102,-203.11199875,0.0003,30]
[341200839,1730628640111,-1545.89955213,0.0003,2]
[341200840,1730628640120,-1358.22929731,0.0003,2]
[341200841,1730628640129,-1198.3329,0.0003,2]
[341200842,1730628640138,-1000.0,0.0003,3]
[341200843,1730628640148,-1000.0,0.0003,3]
[341200844,1730628640158,-1000.0,0.0003,3]
[341200845,1730628640168,-506.54723076,0.0003,15]
[341200846,1730628640177,-2002.6151,0.0003,2]
[341200847,1730628640186,-2000.0,0.0003,2]
[341200848,1730628640195,-389.832,0.0003,2]
[341200849,1730628640204,-389.832,0.0003,2]
[341200850,1730628640213,-13399.03455521,0.0003,2]
[341200851,1730628640222,-13399.03455521,0.0003,2]
[341200852,1730628640231,-13399.03455521,0.0003,2]
[341200853,1730628640240,-530.0,0.0003,60]
[341200854,1730628640249,-696.83175,0.0003,2]
[341200855,1730628640259,-696.83175,0.0003,2]
[341200856,1730628640268,-151.0,0.0003,120]
[341200857,1730628640276,-200.0,0.0003,2]
[341200858,1730628640363,-200.0,0.0003,2]
[341200859,1730628640372,-200.0,0.0003,2]
[341200860,1730628640383,-200.0,0.0003,2]
[341200861,1730628640391,-198.0,0.0003,2]
[341200862,1730628640400,-662.33617656,0.0003,2]
[341200863,1730628640410,-930.50925,0.0003,2]
[341200864,1730628640419,-930.50925,0.0003,2]
[341200865,1730628640429,-398.0,0.0003,14]
[341200866,1730628640439,-796.0,0.0003,14]
[341200867,1730628640448,-796.0,0.0003,14]
[341200868,1730628640457,-202.16222911,0.0003,2]
[341200869,1730628640466,-196.0,0.0003,14]
[341200870,1730628640475,-1000.0,0.0003,11]
[341200871,1730628640484,-182.474,0.0003,2]
[341200872,1730628640493,-182.474,0.0003,2]
[341200873,1730628640502,-182.474,0.0003,2]
[341200874,1730628640511,-182.474,0.0003,2]
[341200875,1730628640521,-182.474,0.0003,2]
[341200876,1730628640532,-182.474,0.0003,2]
[341200877,1730628640543,-182.474,0.0003,2]
[341200878,1730628640552,-182.474,0.0003,2]
[341200879,1730628640561,-182.474,0.0003,2]
[341200880,1730628640570,-182.474,0.0003,2]
[341200881,1730628640579,-240.64,0.0003,2]
[341200882,1730628640588,-240.64,0.0003,2]
[341200883,1730628640597,-240.64,0.0003,2]
[341200884,1730628640607,-240.64,0.0003,2]
[341200885,1730628640616,-240.64,0.0003,2]
[341200886,1730628640625,-240.64,0.0003,2]
[341200887,1730628640634,-240.64,0.0003,2]
[341200888,1730628640643,-240.64,0.0003,2]
[341200889,1730628640652,-240.64,0.0003,2]
[341200890,1730628640662,-240.64,0.0003,2]
[341200891,1730628640671,-240.64,0.0003,2]
[341200892,1730628640680,-240.64,0.0003,2]
[341200893,1730628640690,-240.64,0.0003,2]
[341200894,1730628640699,-240.64,0.0003,2]
[341200895,1730628640708,-240.64,0.0003,2]
[341200896,1730628640717,-240.64,0.0003,2]
[341200897,1730628640727,-240.64,0.0003,2]
[341200898,1730628640737,-240.64,0.0003,2]
[341200899,1730628640746,-240.64,0.0003,2]
[341200900,1730628640756,-240.64,0.0003,2]
[341200901,1730628640766,-152.0,0.00030003,15]
[341200902,1730628640776,-561.5096893,0.0003001,2]
[341200903,1730628640786,-366.2884169,0.00030038,2]
[341200904,1730628640796,-240.511999,0.00030059,2]
[341200905,1730628640810,-940.0,0.0003008,5]
[341200906,1730628640819,-166.38,0.00030212,2]
[341200907,1730628640828,-152.0,0.00030303,16]
[341200908,1730628640837,-521.01,0.00030388,2]
[341200909,1730628640847,-11545.0,0.000304,3]
[341200910,1730628640856,-168.24,0.00030569,2]
[341200911,1730628640865,-152.0,0.00030602,17]
[341200912,1730628640874,-11545.0,0.000309,5]
[341200913,1730628640884,-152.0,0.00030902,18]
[341200914,1730628640894,-500.0,0.00031,2]
[341200915,1730628640903,-152.0,0.00031202,19]
[341200916,1730628640913,-166.38,0.00031409,2]
[341200917,1730628640922,-3407.6619935,0.0003143,4]
[341200918,1730628640931,-813.26972216,0.00031499,15]
[341200919,1730628640941,-152.0,0.00031502,20]
[341200920,1730628640950,-151.97,0.00031562,2]
[341200921,1730628640959,-16021.48629909,0.00031747,4]
[341200922,1730628640968,-1000.0,0.00031762,2]
[341200923,1730628640977,-289.69424824,0.00031771,2]
[341200924,1730628640986,-37468.2575268,0.00031781,7]
[341200925,1730628640996,-32170.0520396,0.00031781,7]
[341200926,1730628641005,-412.94152736,0.00031781,7]
[341200927,1730628641014,-265.26767373,0.00031781,7]
[341200928,1730628641023,-29791.0182666,0.00031781,7]
[341200929,1730628641032,-284.76679642,0.00031781,7]
[341200930,1730628641042,-152.0,0.00031802,21]
[341200931,1730628641052,-152.89,0.00032,10]
[341200932,1730628641061,-152.0,0.00032102,22]
[341200933,1730628641070,-1000.23,0.00032192,2]
[341200934,1730628641080,-760.37,0.00032192,2]
[341200935,1730628641089,-760.37,0.00032192,2]
[341200936,1730628641098,-760.37,0.00032192,2]
[341200937,1730628641107,-760.37,0.00032192,2]
[341200938,1730628641117,-760.73,0.00032192,2]
[341200939,1730628641126,-760.37,0.00032192,2]
[341200940,1730628641136,-760.37,0.00032192,2]
[341200941,1730628641145,-760.37,0.00032192,2]
[341200942,1730628641155,-791.58,0.00032192,2]
[341200943,1730628641164,-753.67,0.00032192,2]
[341200944,1730628641174,-152.0,0.00032402,23]
[341200945,1730628641183,-166.38,0.00032606,2]
[341200946,1730628641192,-521.01,0.00032652,2]
[341200947,1730628641202,-152.0,0.00032702,24]
[341200948,1730628641211,-155.95,0.0003272,2]
[341200949,1730628641221,-376.0,0.00032876,5]
[341200950,1730628641230,-1000.0,0.00032877,7]
[341200951,1730628641240,-1000.0,0.00032877,7]
[341200952,1730628641249,-1000.0,0.00032877,7]
[341200953,1730628641258,-1000.0,0.00032877,7]
[341200954,1730628641268,-1000.0,0.00032877,7]
[341200955,1730628641277,-1000.0,0.00032877,7]
[341200956,1730628641286,-1000.0,0.00032877,7]
[341200957,1730628641297,-1000.0,0.00032877,7]
[341200958,1730628641309,-1000.0,0.00032877,7]
[341200959,1730628641318,-1000.0,0.00032877,7]
[341200960,1730628641327,-1000.0,0.00032877,7]
[341200961,1730628641337,-1000.0,0.00032877,7]
[341200962,1730628641346,-1000.0,0.00032877,7]
[341200963,1730628641355,-1000.0,0.00032877,7]
[341200964,1730628641364,-1000.0,0.00032877,7]
[341200965,1730628641373,-1000.0,0.00032877,7]
[341200966,1730628641382,-1000.0,0.00032877,7]
[341200967,1730628641391,-1000.0,0.00032877,7]
[341200968,1730628641401,-1000.0,0.00032877,7]
[341200969,1730628641410,-1000.0,0.00032877,7]
[341200970,1730628641419,-1000.0,0.00032877,7]
[341200971,1730628641428,-1000.0,0.00032877,7]
[341200972,1730628641437,-1000.0,0.00032877,7]
[341200973,1730628641446,-1000.0,0.00032877,7]
[341200974,1730628641455,-1000.0,0.00032877,7]
[341200975,1730628641464,-1000.0,0.00032877,7]
[341200976,1730628641474,-1000.0,0.00032877,7]
[341200977,1730628641483,-1000.0,0.00032877,7]
[341200978,1730628641491,-1000.0,0.00032877,7]
[341200979,1730628641500,-1124.0,0.00032877,7]
[341200980,1730628641510,-237.15,0.00032877,2]
[341200981,1730628641519,-220.52239437,0.000329,6]
[341200982,1730628641528,-618.62002559,0.00033,30]
[341200983,1730628641537,-737.59686427,0.00033,30]
[341200984,1730628641547,-3000.0,0.00033,93]
[341200985,1730628641556,-3889.74297254,0.00033,60]
[341200986,1730628641565,-4843.56,0.00033,7]
[341200987,1730628641574,-550.0,0.00033,2]
[341200988,1730628641583,-363.351783,0.00033,14]
[341200989,1730628641592,-152.0,0.00033001,25]
[341200990,1730628641601,-813.26972216,0.00033098,15]
[341200991,1730628641611,-428.67,0.00033151,2]
[341200992,1730628641620,-210.49,0.00033151,120]
[341200993,1730628641629,-152.0,0.00033301,26]
[341200994,1730628641638,-20000.0,0.00033463,7]
[341200995,1730628641647,-1152.39598826,0.000335,2]
[341200996,1730628641656,-152.0,0.00033601,27]
[341200997,1730628641665,-166.38,0.00033803,2]
[341200998,1730628641675,-152.0,0.00033901,28]
[341200999,1730628641684,-7054.34160111,0.00034,2]
[341201000,1730628641693,-152.0,0.00034201,29]
[341201001,1730628641703,-500.0,0.000344,120]
[341201002,1730628641713,-152.0,0.00034501,30]
[341201003,1730628641722,-150.0,0.00034548,10]
[341201004,1730628641732,-85875.29210508,0.00034601,2]
[341201005,1730628641744,-464630.00482747,0.00034637,2]
[341201006,1730628641774,-1954.9999999,0.00034637,2]
[341201007,1730628641958,-342.46857,0.00034637,2]
[341201011,1730628643058,-278.76342422,0.00031737,10]
[341201020,1730628976802,197.55,0.00015342,2]
[341201025,1730629472452,155.95,0.00015342,2]
[341201026,1730629508281,176213.16005593,0.00016,2]
[341201027,1730629530256,150.0,0.000101,2]
[341201028,1730629530277,150.0,0.000101,2]
[341201029,1730629530299,150.0,0.000101,2]
[341201030,1730629530319,150.0,0.000101,2]
[341201031,1730629530341,150.0,0.000101,2]
[341201032,1730629530361,150.0,0.000101,2]
[341201033,1730629530382,150.0,0.000101,2]
[341201034,1730629530403,243.90441601,0.000101,2]
[341201035,1730629530426,16341.15923464,0.000101,2]
[341201036,1730629537308,150.0,9e-05,2]
[341201037,1730629537328,150.0,9e-05,2]
[341201038,1730629537348,150.0,9e-05,2]
[341201039,1730629537367,150.0,9e-05,2]
[341201040,1730629537387,150.0,9e-05,2]
[341201041,1730629537406,150.0,9e-05,2]
[341201042,1730629537426,150.0,9e-05,2]
[341201043,1730629537448,150.0,9e-05,2]
[341201044,1730629537469,150.0,9e-05,2]
[341201045,1730629537489,150.0,9e-05,2]
[341201046,1730629537511,18040.68,9e-05,2]
[341201047,1730629556859,1350.0,6.94e-05,2]
[341201048,1730629564211,161.67323378,9e-05,2]
[341201049,1730629569336,599.99999901,0.0001,2]
[341201050,1730629624416,1400.0,0.000154,5]
[341201051,1730629626504,2900.0,0.000155,5]
[341201057,1730629676716,424.29,0.000153,7]
[341201058,1730629679619,4205.9805949,0.00013,2]
[341201059,1730629683778,10941.76477381,0.0001,2]
[341201060,1730629684861,34605.02559177,0.000145,3]
[341201061,1730629694241,4659.82005371,0.00013,4]
[341201063,1730629729810,150.34592202,0.00013,2]
[341201064,1730629730809,254.91313369,0.000107,2]
[341201065,1730629731089,2151.84300419,0.0001421,7]
[341201076,1730629785234,165.68,0.00024877,30]
[341201090,1730629831976,-465.78806071,0.000153,2]
[341201094,1730629832428,-486.26691557,0.000153,2]
[341201096,1730629832437,-1151.42200639,0.000155,2]
[341201097,1730629832446,-4300.0,0.000156,5]
[341201099,1730629832542,-300.0,0.00015699,2]
[341201100,1730629832551,-5800.0,0.000157,5]
[341201101,1730629832560,-171.10798623,0.00015799,2]
[341201102,1730629832569,-7200.0,0.000158,5]
[341201103,1730629832580,-232.49,0.0001587,3]
[341201104,1730629832594,-406.86,0.0001587,3]
[341201105,1730629832603,-230.0,0.00015878,2]
[341201106,1730629832612,-500.0,0.00015879,2]
[341201107,1730629832623,-500.0,0.00015879,2]
[341201108,1730629832631,-414.57957325,0.00015879,2]
[341201109,1730629832641,-500.0,0.00015879,2]
[341201110,1730629832650,-500.0,0.00015879,2]
[341201111,1730629832662,-500.0,0.00015879,2]
[341201112,1730629832671,-500.0,0.00015879,2]
[341201113,1730629832680,-381.94333382,0.00015879,2]
[341201114,1730629832689,-500.0,0.00015879,2]
[341201115,1730629832698,-500.0,0.00015879,2]
[341201116,1730629832707,-490.20570128,0.00015879,2]
[341201117,1730629832716,-10943.90723649,0.0001588,2]
[341201118,1730629832727,-1283.39985363,0.0001588,2]
[341201119,1730629832739,-3665.23582379,0.0001588,2]
[341201120,1730629832750,-2261.75,0.0001588,2]
[341201121,1730629832761,-665.18959959,0.0001588,2]
[341201122,1730629832790,-722.16573347,0.0001588,2]
[341201123,1730629832801,-1965.56307591,0.0001588,2]
[341201124,1730629832812,-685.3336752,0.0001588,2]
[341201125,1730629832822,-571.51368121,0.0001588,2]
[341201130,1730629838126,-1355.06,0.0001588,2]
[341201131,1730629838306,-538.33314605,0.0001588,2]
[341201132,1730629838325,-32518.27977142,0.0001588,2]
[341201152,1730629839960,-15095.24538634,0.0001588,2]
[341201155,1730629839975,-4849.0,0.0001588,2]
[341201156,1730629840052,-992.02146185,0.0001588,2]
[341201157,1730629840063,-494.38893867,0.0001588,2]
[341201158,1730629840132,-1368.64,0.0001588,2]
[341201159,1730629840215,-6841.18,0.0001588,2]
[341201160,1730629840231,-642.03987634,0.0001588,2]
[341201234,1730629843034,-10012.13958475,0.0001588,2]
[341201243,1730629846155,-1771.11138384,0.0001588,2]
[341201245,1730630198320,150.0,0.00015511,5]
[341201246,1730630661457,5000.0,0.000259,30]
[341201247,1730630717082,4992.99,0.00026,30]
[341201259,1730630826551,300.0,0.000154,5]
[341201260,1730630828677,700.0,0.000155,5]
[341201285,1730631032179,-600.21,0.00014671,2]
[341201287,1730631032189,-169.88,0.00015046,2]
[341201288,1730631032199,-418.43,0.00015099,2]
[341201289,1730631032208,-767.41,0.00015229,2]
[341201290,1730631032217,-219.9886861,0.00015242,2]
[341201291,1730631032226,-157.67,0.00015342,2]
[341201292,1730631032235,-156.42,0.00015342,2]
[341201293,1730631032244,-300.0,0.00015381,2]
[341201294,1730631032253,-1044.17316655,0.00015382,2]
[341201295,1730631032264,-1054.34457799,0.00015382,2]
[341201296,1730631032275,-701.26254607,0.00015382,2]
[341201297,1730631032293,-505.72485752,0.00015382,2]
[341201298,1730631032316,-8413.5871555,0.00015382,2]
[341201299,1730631032427,-3260.31394988,0.00015382,2]
[341201300,1730631032438,-3998.97833986,0.00015382,2]
[341201311,1730631038161,-300.0,0.00015382,2]
[341201317,1730631040365,-2242.59366376,0.00015382,2]
[341201323,1730631043286,-2379.02174287,0.00015382,2]
[341201324,1730631043296,-150.0,0.00015391,2]
[341201325,1730631043305,-250.0,0.00015395,2]
[341201326,1730631043315,-1100.0,0.000156,5]
[341201327,1730631043324,-332.93,0.00015609,2]
[341201328,1730631043333,-1500.0,0.000157,5]
[341201329,1730631043342,-153.54925931,0.00015779,2]
[341201330,1730631043351,-181.33,0.00015779,2]
[341201331,1730631043360,-16883.6848,0.0001578,2]
[341201332,1730631043369,-5760.1395,0.0001578,2]
[341201333,1730631043378,-712.805,0.0001578,2]
[341201334,1730631043387,-18968.9651601,0.0001578,2]
[341201335,1730631043417,-4115.6255399,0.0001578,2]
[341201336,1730631043426,-1248.2176,0.0001578,2]
[341201337,1730631043435,-1000.0,0.0001578,2]
[341201338,1730631043444,-2016.4654,0.0001578,2]
[341201339,1730631043453,-2146.70874048,0.00015788,2]
[341201340,1730631043462,-12.1183236,0.000158,5]
[341201345,1730631046140,-554.510848,0.000158,5]
[341201346,1730631046401,-308.51356416,0.000158,5]
[341201347,1730631046415,-264.6387,0.000158,5]
[341201348,1730631293245,-660.21856424,0.000158,5]
[341201349,1730631293267,-300.0,0.000159,5]
[341201353,1730631650902,501.0,0.000155,5]
[341201354,1730631692378,599.99,0.00013383,2]
[341201372,1730632205830,569.99,0.00013305,2]
[341201381,1730632232309,-250.0,0.00015034,2]
[341201384,1730632232318,-2324.05,0.00015098,2]
[341201386,1730632232328,-506.78,0.00015152,2]
[341201387,1730632232338,-200.0,0.00015162,2]
[341201388,1730632232348,-18043.52,0.00015186,2]
[341201389,1730632232357,-1000.0,0.00015207,2]
[341201390,1730632232367,-260.88,0.00015304,2]
[341201391,1730632232376,-151.97,0.00015342,2]
[341201392,1730632232386,-209.21,0.00015361,2]
[341201393,1730632232395,-341.35030639,0.00015376,2]
[341201394,1730632232404,-1809.87,0.00015376,2]
[341201395,1730632232414,-3129.34728322,0.00015376,2]
[341201396,1730632232546,-2500.53271678,0.00015376,2]
[341201397,1730632232558,-336.267,0.00015536,2]
[341201398,1730632232568,-569.99,0.00015569,2]
[341201399,1730632232579,-150.0,0.00015772,2]
[341201400,1730632232589,-305.4068,0.0001578,2]
[341201401,1730632232598,-1373.51602957,0.0001578,2]
[341201402,1730632232691,-2053.15711506,0.0001578,2]
[341201403,1730632238421,-22818.71965537,0.0001578,2]
[341201404,1730632238430,-1704.0757,0.0001578,2]
[341201405,1730632238439,-495.7101,0.0001578,2]
[341201406,1730632238448,-304.39962382,0.0001578,2]
[341201409,1730632238659,-431.79227618,0.0001578,2]
[341201410,1730632238669,-1770.28772382,0.0001578,2]
[341201411,1730632238789,-365.44252438,0.0001578,2]
[341201596,1730632240518,-2224.39543525,0.0001578,2]
[341201601,1730632240530,-411.02500003,0.0001578,2]
[341201629,1730632240667,-11246.18941652,0.0001578,2]
[341201633,1730632240677,-1115.41,0.0001578,2]
[341201636,1730632240687,-171.10798622,0.00015788,2]
[341201638,1730632240696,-312.41,0.0001587,3]
[341201641,1730632240705,-260.34,0.0001587,3]
[341201644,1730632240714,-781.05,0.0001587,3]
[341201647,1730632240724,-500.67891799,0.00015873,2]
[341201650,1730632240733,-500.0,0.00015873,2]
[341201654,1730632240743,-1000.0,0.00015879,2]
[341201657,1730632240754,-37653.87332411,0.0001588,2]
[341201660,1730632240766,-333.0300009,0.0001588,2]
[341201663,1730632240777,-378.895,0.0001588,2]
[341202387,1730633029380,284.55694845,0.00025999,30]
[341202409,1730633431482,-155.95,0.00015342,2]
[341202410,1730633431492,-157.67,0.00015342,2]
[341202411,1730633431502,-341.35030639,0.00015487,2]
[341202412,1730633431511,-11.15129302,0.0001578,2]
[341202413,1730633431693,-480.27260698,0.0001578,2]
[341202414,1730633431702,-171.10798622,0.00015858,2]
[341202415,1730633431711,-190.91,0.0001587,3]
[341202416,1730633431720,-528.9294068,0.0001587,3]
[341202421,1730633437673,-1255.62,0.00015858,2]
[341202422,1730633437788,-676.41786636,0.00015858,2]
[341202423,1730633437798,-43.8405932,0.0001587,3]
[341202424,1730633437807,-291.29216891,0.00015879,2]
[341202425,1730633437822,-8.70783109,0.00015879,2]
[341202426,1730633437831,-9483.18737695,0.0001588,2]
[341202467,1730633439799,-2398.725,0.0001588,2]
[341202468,1730633439811,-824.33775195,0.0001588,2]
[341202486,1730633442517,-1645.72531603,0.0001588,2]
[341202500,1730633445726,-1372.75707709,0.0001588,2]
[341202510,1730634201260,-561.33,0.0001448,2]
[341202511,1730634201282,-150.0,0.0001519,2]
[341202512,1730634201305,-156.42,0.00015342,2]
[341202513,1730634201326,-2500.0,0.0001578,2]
[341202514,1730634201347,-1000.0,0.0001578,2]
[341202515,1730634201370,-1738.83407976,0.000158,2]
[341202516,1730634201394,-300.0,0.00015878,2]
[341202517,1730634201416,-37593.41592024,0.0001588,2]
[341202534,1730634631748,-320.25724888,0.00014059,2]
[341202535,1730634631759,-213.00275112,0.00014059,2]
[341202536,1730634631769,-151.97,0.00015342,2]
[341202537,1730634631778,-206.54840386,0.0001578,2]
[341202538,1730634631789,-344.33408279,0.0001578,2]
[341202539,1730634632060,-449.11751335,0.0001578,2]
[341202540,1730634632069,-190.02766705,0.0001578,2]
[341202541,1730634632120,-1548.80641271,0.0001578,2]
[341202542,1730634632129,-365.23253023,0.0001587,3]
[341202565,1730634640039,-16.58746977,0.0001587,3]
[341202566,1730634640052,-276.79168962,0.00015879,2]
[341202567,1730634640068,-23.20831038,0.00015879,2]
[341202568,1730634640082,-304.55192499,0.0001588,2]
[341202590,1730634645786,-4105.75996591,0.0001588,2]
[341202591,1730635135297,506.59,0.0001364,2]
[341202592,1730635198013,374.0,0.00026,30]
[341202608,1730635750681,491.92,0.00013358,2]
[341202613,1730635831871,-3308.03132473,0.00015143,2]
[341202830,1730635838078,-5506.8327378,0.00015143,2]
[341202840,1730635839810,-361.366005,0.00015143,2]
[341202841,1730635840023,-458.059426,0.00015143,2]
[341202842,1730635840184,-836.57324192,0.00015143,2]
[341202844,1730635843018,-1522.89726455,0.00015143,2]
[341202845,1730635843028,-209.45,0.00015232,2]
[341202846,1730635843037,-218.45,0.00015251,2]
[341202847,1730635843046,-156.42,0.00015342,2]
[341202848,1730635843056,-250.0,0.00015346,2]
[341202849,1730635843066,-4847.96907372,0.00015346,2]
[341202850,1730635843281,-1417.77761031,0.00015346,2]
[341202851,1730635843340,-3066.47520364,0.00015346,2]
[341202852,1730635843350,-4080.36,0.00015358,2]
[341202853,1730635843359,-200.0,0.00015384,2]
[341202854,1730635843369,-455.24,0.00015396,2]
[341202855,1730635843379,-491.92,0.00015622,2]
[341202856,1730635843388,-662.12734,0.000157,2]
[341202857,1730635843397,-1000.0,0.00015704,2]
[341202858,1730635843406,-3235.84,0.00015704,2]
[341202859,1730635843416,-269.014,0.0001573,2]
[341202860,1730635843425,-4126.7751,0.0001578,2]
[341202861,1730635843435,-10782.122,0.0001578,2]
[341202862,1730635843445,-1564.95067182,0.0001578,2]
[341202863,1730635843454,-156.383498,0.0001578,2]
[341202864,1730635843463,-151.0,0.0001578,2]
[341202865,1730635843472,-161.307616,0.0001578,2]
[341202866,1730635843482,-151.0,0.0001578,2]
[341202867,1730635843491,-151.0,0.0001578,2]
[341202868,1730635843500,-171.10798622,0.0001578,2]
[341202870,1730635843509,-167262.81827615,0.0001588,2]
[341202876,1730635846187,-1399.92136283,0.0001588,2]
[341202878,1730636171086,-155.95,0.00015342,2]
[341202879,1730636171116,-761.05,0.00015875,2]
[341202886,1730636503971,4997.2380949,0.0002599,30]
[341202905,1730637032015,-442.72,0.00014275,2]
[341202906,1730637032024,-150.0,0.00014975,2]
[341202907,1730637032034,-128.29,0.00015342,2]
[341202908,1730637032046,-28.13,0.00015342,2]
[341202909,1730637032055,-151.97,0.00015342,2]
[341202910,1730637032064,-1245.0,0.000157,2]
[341202911,1730637032073,-411.29289519,0.00015878,2]
[341202912,1730637032085,-979.68026734,0.00015878,2]
[341202913,1730637032285,-3393.18683747,0.00015878,2]
[341202924,1730637038037,-701.384344,0.00015878,2]
[341202925,1730637038054,-145.2586033,0.00015878,2]
[341202926,1730637038064,-323.5490904,0.00015879,2]
[341202927,1730637038093,-176.4509096,0.00015879,2]
[341202928,1730637038102,-500.0,0.00015879,2]
[341202929,1730637038112,-500.0,0.00015879,2]
[341202930,1730637038122,-243.14399089,0.00015879,2]
[341202931,1730637038131,-500.0,0.00015879,2]
[341202932,1730637038141,-500.0,0.00015879,2]
[341202933,1730637038150,-67706.50863666,0.0001588,2]
[341202934,1730637038329,-307.4777073,0.0001588,2]
[341202937,1730637040112,-60496.17542437,0.0001588,2]
[341202938,1730637040122,-207.9379293,0.0001588,2]
[341202939,1730637040132,-1233.3539,0.0001588,2]
[341202940,1730637040142,-8181.25001289,0.0001588,2]
[341202970,1730637043770,-5699.56391077,0.0001588,2]
[341202971,1730637043782,-14315.94359999,0.0001588,2]
[341202973,1730637046219,-1085.0,0.0001588,2]
[341202974,1730637046302,-816.721016,0.0001588,2]
[341202978,1730637403994,404.9,0.00025,30]
[341202981,1730637998280,150.0,0.00015,3]
[341203001,1730638232134,-420.58,0.00014524,2]
[341203002,1730638232144,-150.0,0.00015237,2]
[341203003,1730638232153,-210.93629935,0.0001588,2]
[341203004,1730638232434,-1239.75970994,0.0001588,2]
[341203011,1730638238181,-6044.2413713,0.0001588,2]
[341203012,1730638238191,-300.0,0.00015885,2]
[341203013,1730638238200,-3757.9730178,0.00015886,2]
[341203014,1730638238210,-1408.45560462,0.00015889,2]
[341203015,1730638238309,-685.5833366,0.00015897,2]
[341203016,1730638238319,-165.23110341,0.000159,2]
[341203017,1730638238329,-171.10798622,0.00015908,2]
[341203018,1730638238338,-259.23219914,0.00015908,2]
[341203019,1730638238349,-1366.20010654,0.00015908,2]
[341203020,1730638238364,-568.06168146,0.00015908,2]
[341203021,1730638238373,-500.0,0.00015979,2]
[341203022,1730638238382,-420.20079363,0.00015979,2]
[341203023,1730638238392,-410.32654766,0.00015979,2]
[341203024,1730638238404,-89.67345234,0.00015979,2]
[341203025,1730638238413,-500.0,0.00015979,2]
[341203026,1730638238422,-215.211,0.00015979,2]
[341203027,1730638238431,-5234.34765911,0.0001598,2]
[341203071,1730638240386,-369.0,0.0001598,2]
[341203073,1730638240398,-1938.28879912,0.0001598,2]
[341203115,1730638243356,-40822.07187921,0.0001598,2]
[341203116,1730638243367,-437.25515356,0.0001598,2]
[341203117,1730638243414,-33121.94989149,0.0001598,2]
[341203137,1730638246313,-940.8088,0.0001598,2]
[341203138,1730638246369,-317.88513687,0.0001598,2]
[341203192,1730639432487,-155.95,0.00015342,2]
[341203194,1730639432497,-1267.61004414,0.00015889,2]
[341203196,1730639432506,-165.23110341,0.00015912,2]
[341203198,1730639432515,-172.8214661,0.00015912,2]
[341203200,1730639432524,-1289.50785868,0.00015912,2]
[341203202,1730639432535,-569.3349839,0.00015978,2]
[341203204,1730639432543,-2097.8663254,0.00015978,2]
[341203206,1730639432553,-300.0,0.00015979,2]
[341203207,1730639432561,-1915.49168678,0.0001598,2]
[341203209,1730639432573,-3998.11602053,0.0001598,2]
[341203213,1730639432599,-358.129999,0.0001598,2]
[341203399,1730639440306,-547.52749393,0.0001598,2]
[341203408,1730639440367,-395.48039178,0.0001598,2]